Cogmind - Beta 16 @@@ ROGUE MODE // 2025.12.07 @ 00:37:53 Player: PopcornMaze Result: Destroyed by KZ-G3G(R) with Subdweller Machine Gun Performance ------------- Evolutions (0) 0 Regions Visited (3) 600 Robots Destroyed (34) 170 Value Destroyed (871) 871 Prototype IDs (0) 0 Alien Tech Used (0) 0 Bonus (-10) -10 TOTAL SCORE: 1631 Bonus ------- Friendly Fire -10 Cogmind --------- Core Integrity 0/250 Matter 293/300 Energy 160/160 System Corruption 0% Temperature Cool (0) Movement Treading (240) Ox1 Location -10/Subcaves Parts ------- > --- POWER (1) -------- Light Nuclear Core > --- PROPULSION (2) --- Improved Treads > --- UTILITY (2) ------ Large Storage Unit Hacking Suite > --- WEAPON (2) ------- Particle Gun Light Assault Rifle > --- INVENTORY (15) --- Wheel Compact Wheel Improved Heat Sink Cooling System Experimental Sensor Array Scrap Shield Beamcaster Mace Scrap Shield Fragment (45) Peak State ------------ > --- POWER ------------ Light Nuclear Core > --- PROPULSION ------- Improved Treads Improved Treads > --- UTILITY ---------- Large Storage Unit Hacking Suite > --- WEAPON ----------- Particle Gun Beamcaster > --- INVENTORY -------- Wheel Compact Wheel Improved Heat Sink Cooling System Experimental Sensor Array Scrap Shield Light Assault Rifle Mace Scrap Shield Fragment [Rating: 20] Favorites ----------- Power Light Ion Engine Engine Light Ion Engine Power Core Light Nuclear Core Propulsion Improved Treads Treads Improved Treads Utility Large Storage Unit Device Seismic Detector Storage Large Storage Unit Hackware Hacking Suite Weapon Assault Rifle Energy Gun Particle Gun Ballistic Gun Assault Rifle Build | -11 -10 -10 -10 ------- Run | Yrd Mat Min Sub Slots Evolved . | . . . . Power . | . . . . Propulsion . | . . . . Utility . | . . . . Weapon . | . . . . Parts Attached 24 | 8 6 4 6 Power 6 | 1 2 2 1 Engine 4 | 1 1 2 . Core 2 | . 1 . 1 Reactor . | . . . . Propulsion 6 | 2 2 . 2 Treads 6 | 2 2 . 2 Leg . | . . . . Wheel . | . . . . Hover . | . . . . Flight . | . . . . Utility 5 | 3 2 . . Device 2 | 2 . . . Storage 2 | 1 1 . . Processor . | . . . . Hackware 1 | . 1 . . Protection . | . . . . Artifact . | . . . . Weapon 7 | 2 . 2 3 Energy Gun 2 | . . . 2 Energy Cannon . | . . . . Ballistic Gun 5 | 2 . 2 1 Ballistic Cannon . | . . . . Launcher . | . . . . Special Weapon . | . . . . Impact Weapon . | . . . . Slashing Weapon . | . . . . Piercing Weapon . | . . . . Special Melee Weapon . | . . . . Unidentified Prototypes . | . . . . Parts Lost 12 | . 2 4 6 Power 4 | . 1 2 1 Propulsion 3 | . . . 3 Utility 1 | . 1 . . Weapon 4 | . . 2 2 Highest Loss Streak 5 | . 1 2 5 To Critical Strikes 1 | . . . 1 Average Backups 10 | 3 8 13 11 Power . | . 1 1 . Propulsion 3 | 1 2 4 2 Utility 4 | . 3 5 4 Weapon 2 | . 1 3 2 Tool/Special . | . . . . Unused Backups 11 | . . 2 9 Power . | . . . . Propulsion 2 | . . . 2 Utility 7 | . . 1 6 Weapon 2 | . . 1 1 Tool/Special . | . . . . Average Slot Usage (%) 96 | . 98 96 95 Engine 11 | . 10 13 6 Core 1 | . 3 . 7 Treads 27 | . 28 28 26 Device 1 | . 4 . . Storage 14 | . 14 14 14 Hackware 11 | . 7 14 14 Ballistic Gun 25 | . 28 24 18 Peak Build Rating 20 | 9 14 18 20 Average Rating 12 | 7 9 14 16 On Entrance 9 | . 7 12 18 Avg Prop Armor Cover (%) . | . . . . Naked Turns . | . . . . Heaviest Build 32 | 15 30 32 32 Greatest Support 46 | 40 46 46 46 Greatest Overweight (x) 1 | 1 . . 1 Average Overweight (x) . | . . . . Largest Inventory Capacity 15 | 8 15 15 15 Average Capacity 14 | 7 14 15 15 Most Carried 15 | 6 12 15 15 Average Carried 10 | 3 8 13 12 Final Capacity 15 | 8 15 15 15 Final Carried 15 | 6 11 15 10 Class Distribution -------------------- 96% | Mutant 3% | Scavenger-Mutant Dominant Class ---------------- Mutant | -10/Materials Mutant | -10/Mines Scavenger-Mutant | -10/Subcaves Resources | -11 -10 -10 -10 ----------- Run | Yrd Mat Min Sub Matter Collected 985 | 257 389 245 94 Remotely . | . . . . Salvage Created 1104 | 134 534 250 186 Parts 80 | 24 24 22 10 Haulers Intercepted 1 | . 1 . . Recyclers Shooed . | . . . . Parts Field Recycled . | . . . . Retrieved Matter . | . . . . Parts Self-Destructed 3 | . . . 3 Prevented . | . . . . Parts Restored . | . . . . Kills | -11 -10 -10 -10 ------- Run | Yrd Mat Min Sub Combat Hostiles Destroyed 23 | . 11 8 4 Guns 23 | . 11 8 4 Classes Destroyed 8 | 2 5 . 1 Worker 1 | 1 . . . Tunneler 7 | 7 . . . Hauler 1 | . 1 . . Recycler 1 | . 1 . . Operator 1 | . 1 . . Swarmer 6 | . 3 3 . Grunt 13 | . 8 5 . Subdweller 4 | . . . 4 Best Kill Streak 3 | 3 3 3 2 Combat Bots Only 3 | . 3 3 2 Max Kills in Single Turn 1 | 1 1 1 1 Gunslinging . | . . . . Exploded . | . . . . Melee . | . . . . Uniques/NPCs Destroyed . | . . . . Combat | -11 -10 -10 -10 -------- Run | Yrd Mat Min Sub Hostile Shots Fired 164 | . 79 36 49 Missed 49 | . 23 14 12 Hits 115 | . 56 22 37 Projectile 115 | . 56 22 37 Critical Strikes 6 | . 3 . 3 Damage Taken 1884 | . 700 297 887 Core 256 | . 88 27 141 Absorbed by Shields . | . . . . Core Remaining (%) 100 | 100 . . . Volleys Fired 114 | 15 44 23 32 Largest 2 | 2 2 2 2 Hottest 140 | 40 40 40 140 Shots Fired 203 | 30 88 33 52 Gun 203 | 30 88 33 52 Cannon . | . . . . Launcher . | . . . . Special . | . . . . Kinetic 194 | 30 88 33 43 Thermal 9 | . . . 9 Explosive . | . . . . Electromagnetic . | . . . . Robot Hit Streak 18 | 5 11 18 12 Robot Miss Streak 5 | 3 5 3 2 Penetration Max . | . . . . Secondary Targets . | . . . . Shots Hit Robots 134 | 18 50 25 41 Core Hits 61 | 8 26 13 14 Critical Kills . | . . . . Critical Parts Destroyed . | . . . . Critical Strikes . | . . . . Melee Attacks . | . . . . Impact . | . . . . Slashing . | . . . . Piercing . | . . . . Sneak Attacks . | . . . . Combat Hostiles . | . . . . Follow-up Attacks . | . . . . Damage Inflicted 1670 | 243 686 312 429 Guns 1649 | 243 665 312 429 Cannons . | . . . . Explosions 21 | . 21 . . Melee . | . . . . Ramming . | . . . . Kinetic 1523 | 243 665 312 303 Thermal 147 | . 21 . 126 Explosive . | . . . . Electromagnetic . | . . . . Impact . | . . . . Slashing . | . . . . Piercing . | . . . . Highest Corruption . | . . . . Average Corruption . | . . . . Corruption Purged . | . . . . Corruption Blocked . | . . . . Overload Shots . | . . . . Overflow Damage . | . . . . Projectiles . | . . . . Explosions . | . . . . Melee . | . . . . Knockbacks . | . . . . Impact . | . . . . Kinetic . | . . . . Secondary . | . . . . Self-Inflicted Damage 37 | . 37 . . Shots 1 | . 1 . . Rammed 1 | . 1 . . Targets Rammed 1 | . 1 . . Kicked . | . . . . Crushed . | . . . . Highest Temperature 378 | . 20 11 378 Average Temperature 131 | . 7 4 265 Received Heat Transfer 975 | . 384 105 486 Effects 4 | . . . 4 Shutdowns 1 | . . . 1 Energy Bleed 1 | . . . 1 Interference 2 | . . . 2 Siege Activations . | . . . . Martial Activations . | . . . . Shielding Activations . | . . . . Robots Disrupted . | . . . . Combat Hostiles . | . . . . Robots Corrupted . | . . . . Combat Hostiles . | . . . . Parts Fried . | . . . . Impact Corruptions . | . . . . Robots Melted . | . . . . Combat Hostiles . | . . . . Parts Melted . | . . . . Heat Transferred 309 | . 50 . 259 Parts Sabotaged . | . . . . Parts Stolen . | . . . . Parts Stripped . | . . . . Power Chain Reactions . | . . . . Alert | -11 -10 -10 -10 ------- Run | Yrd Mat Min Sub Maximum Alert Level 1 | . 1 . . Low Security (%) 81 | 100 46 100 . Level 1 18 | . 53 . . Level 2 . | . . . . Level 3 . | . . . . Level 4 . | . . . . Level 5 . | . . . . High Security . | . . . . Max Security . | . . . . Peak Influence 259 | 15 259 99 . Initial 69 | . 6 69 . Average 68 | 1 165 21 . Influence Increases 779 | 40 497 242 . Destroy 0b10 Robot/C 380 | . 220 160 . Destroy 0b10 Robot/NC 60 | 40 15 5 . Destroy Leader 92 | . 52 40 . Allied During Kill 7 | . . 7 . Successful Hack 21 | . 21 . . Disable Machine 105 | . 105 . . Destroy Structure 39 | . 39 . . Lose Combat Pursuer 75 | . 45 30 . Influence Decreases 779 | 30 329 420 . Entered New Map 113 | . 4 109 . Time Decay 586 | 30 305 251 . Lost Part 60 | . 20 40 . Lost Ally 20 | . . 20 . Squads Dispatched 3 | . 3 . . Investigation 3 | . 3 . . Extermination . | . . . . Reinforcement . | . . . . Assault . | . . . . Garrison . | . . . . Intercept . | . . . . Searches Triggered . | . . . . Construction Impeded . | . . . . Haulers Reinforced . | . . . . Active Scanning Responses . | . . . . Cargo Convoy Interrupts . | . . . . Stealth | -11 -10 -10 -10 --------- Run | Yrd Mat Min Sub Distress Signals 4 | . 4 . . Communications Jammed . | . . . . Distress Signals . | . . . . Times Spotted 34 | . 19 10 5 Peak Tracking Total 4 | . 4 3 2 Tactical Retreats 4 | . 2 2 . Traps | -11 -10 -10 -10 ------- Run | Yrd Mat Min Sub Traps Triggered 3 | . 2 1 . Indirectly . | . . . . Trap Hack Attempts . | . . . . Triggered . | . . . . Disarmed . | . . . . Reprogrammed . | . . . . Reused . | . . . . Traps Extracted . | . . . . Installed . | . . . . Triggered . | . . . . Machines | -11 -10 -10 -10 ---------- Run | Yrd Mat Min Sub Machines Disabled 7 | . 7 . . Max in Single Turn 7 | . 7 . . Machines Repaired . | . . . . Machines Dismantled . | . . . . Machines Sabotaged . | . . . . Overloaded Fab Kills . | . . . . Hacking | -11 -10 -10 -10 --------- Run | Yrd Mat Min Sub Machines Accessed 7 | . 6 1 . Terminals 6 | . 6 . . Fabricators . | . . . . Repair Stations . | . . . . Recycling Units . | . . . . Scanalyzers . | . . . . Garrison Access . | . . . . Total Hacks 22 | . 21 1 . Successful 13 | . 12 1 . Failed 9 | . 9 . . Catastrophic 3 | . 3 . . Database Lockouts . | . . . . Manual 16 | . 16 . . Terminals 21 | . 21 . . Fabricators . | . . . . Repair Stations . | . . . . Recycling Units . | . . . . Scanalyzers . | . . . . Garrison Access . | . . . . Terminal Hacks 8 | . 7 1 . Robot Schematic 2 | . 2 . . Robot Analysis 2 | . 2 . . Open Door 1 | . . 1 . Hauler Manifests 1 | . 1 . . Registered Components 1 | . 1 . . Registered Prototypes 1 | . 1 . . Fabricator Hacks . | . . . . Repair Station Hacks . | . . . . Recycling Unit Hacks . | . . . . Scanalyzer . | . . . . Garrison Access Hacks . | . . . . Unauthorized Hacks 5 | . 5 . . Terminals 5 | . 5 . . Botnet 5 | . 5 . . Fabricators . | . . . . Repair Stations . | . . . . Recycling Units . | . . . . Scanalyzers . | . . . . Garrison Access . | . . . . Data Cores Recovered . | . . . . Used . | . . . . Hacking Detections 6 | . 6 . . Full Trace Events 3 | . 3 . . Feedback Events . | . . . . Feedback Blocked . | . . . . Robot Schematics Acquired 2 | . 2 . . Robots Built . | . . . . Authchips . | . . . . Time . | . . . . Total Robot Build Rating . | . . . . Part Schematics Acquired . | . . . . Parts Built . | . . . . Authchips . | . . . . Time . | . . . . Total Part Build Rating . | . . . . Part Studies Acquired . | . . . . Parts Repaired . | . . . . Time . | . . . . Parts Recycled . | . . . . Recycled Matter . | . . . . Retrieved Matter . | . . . . Retrieved Components . | . . . . Parts Scanalyzed . | . . . . Part Schematics Acquired . | . . . . Parts Damaged . | . . . . Bothacking | -11 -10 -10 -10 ------------ Run | Yrd Mat Min Sub Used RIF Installer . | . . . . Robots Hacked . | . . . . Non-combat . | . . . . Combat . | . . . . Robot Hacks Applied . | . . . . Relay Couplers Released . | . . . . Fabnet Peak Effective % . | . . . . Robots Rewired . | . . . . Allies Hacked . | . . . . Hacks Repelled . | . . . . Allies | -11 -10 -10 -10 -------- Run | Yrd Mat Min Sub Total Allies 2 | . . 2 . Largest Group 2 | . . 2 1 Highest-Rated Group 39 | . . 39 8 Highest-Rated Ally 31 | . . 31 8 Total Orders . | . . . . Ally Attacks 4 | . . 4 . Total Damage 42 | . . 42 . Kills 1 | . . 1 . Allies Corrupted . | . . . . Allies Melted . | . . . . Intel | -11 -10 -10 -10 ------- Run | Yrd Mat Min Sub Active Infowar (turns) 387 | 131 256 . . Terrain 123 | 123 . . . Seismic 264 | 8 256 . . Robot Analysis Total 2 | . 2 . . Derelict Logs Recovered 2 | . . 2 . Drone Launches . | . . . . Drone Recoveries . | . . . . Exploration | -11 -10 -10 -10 ------------- Run | Yrd Mat Min Sub Turns Passed 2380 | 217 745 1224 194 Spaces Moved 1178 | 96 364 656 62 Core 4 | 4 . . . Treads 1174 | 92 364 656 62 Legs . | . . . . Wheels . | . . . . Hover . | . . . . Flight . | . . . . Fastest Speed 50 | 50 160 160 160 Average Speed 159 | 156 160 160 161 Slowest Speed 240 | 160 160 160 240 Overloaded Moves . | . . . . Propulsion Burnouts . | . . . . Robots Hopped . | . . . . Potential Cave-ins . | . . . . Cave-ins Triggered . | . . . . Exploration Rate (%) 39 | 5 53 94 5 Regions Visited 3 Branch Regions 2 Pre-discovered Areas . | . . . . Known Exits Taken . | . . . . Unknown Exits Taken 3 | 1 1 1 . Scrap Searched 1 | . . 1 . Spaces Dug . | . . . . Terrain Destroyed 40 | . 40 . . Melee . | . . . . Projectile . | . . . . AOE 40 | . 40 . . Terrain Rammed . | . . . . Walls Destroyed . | . . . . Machines Disabled . | . . . . Actions | -11 -10 -10 -10 --------- Run | Yrd Mat Min Sub Total 1477 | 130 438 798 111 Wait 130 | 4 14 106 6 Move 1175 | 95 363 655 62 Hop . | . . . . Pick Up 22 | 6 6 8 2 Fast Attach 11 | 8 1 2 . Attach 8 | . 1 2 5 Detach 1 | 1 . . . Swap 5 | . 4 . 1 Drop 10 | 1 4 2 3 Fire 114 | 15 44 23 32 Melee . | . . . . Ram . | . . . . Kick . | . . . . Crush 1 | . 1 . . Escape Stasis . | . . . . Rewire . | . . . . Trap . | . . . . Miscellaneous . | . . . . Route ------- -11/Scrapyard -10/Materials (discovered 2 exits: [*Mat] / *Min) -10/Mines (discovered 3 exits: [*Mat x2] / [*Sub]) -10/Subcaves History --------- Turn | Location | Event 34 | -11/Scrapyard | Discovered new exit (range 15) 218 | -11/Scrapyard | Entered Materials 300 | -10/Materials | Build established: Mutant 343 | -10/Materials | Discovered new exit (range 15) 737 | -10/Materials | Discovered new exit (range 10) 963 | -10/Materials | Entered Mines 1063 | -10/Mines | Learned Materials stockpile data 1085 | -10/Mines | Met a Derelict who couldn't figure out how to use a Trap Extractor 1346 | -10/Mines | Found a damaged Exp. Sensor Array with a note attached 1349 | -10/Mines | Found Prototype Device 1363 | -10/Mines | Discovered new exit (range 7) 1523 | -10/Mines | Discovered new exit (range 8) 1547 | -10/Mines | Found DCF Scrap (13 items) 2069 | -10/Mines | Learned 2 Materials zone layouts 2075 | -10/Mines | Found a hidden stash of uninstalled traps 2160 | -10/Mines | Discovered new exit (range 5) 2187 | -10/Mines | Entered Subcaves 2187 | -10/Subcaves | Accompanied by 1 ally 2188 | -10/Subcaves | Approached by a straggling Scientist 2206 | -10/Subcaves | Core integrity fell below 50% 2280 | -10/Subcaves | Core integrity fell below 20% 2302 | -10/Subcaves | Lost 5 parts (1p2n2w) 2343 | -10/Subcaves | Disturbed a concealed Subdweller 2381 | -10/Subcaves | Destroyed by KZ-G3G(R) with Subdweller Machine Gun Last Messages --------------- 02277_ Critical hit (Meltdown: +270). 02280_ Subatomizers dissect the Disposable Heat Sink. 02290_ Power failure, Lgt. Nuclear Core shutdown. 02293_ KT-JNR(R) destroyed. 02294_ Overheating: Energy bleed (-23). 02295_ Subatomizers dissect the Disposable Heat Sink. 02296_ Overheating: System interference. 02296_ Particle Gun temporarily disabled. 02299_ Acquired 94 matter. 02307_ Subatomizers dissect the Disposable Heat Sink. 02343_ KZ-G3G(R) angrily emerges from the Twisted Machinery. 02363_ KZ-G3G(R) affixes Scrap Shield Fragment to Scrap Shield. 02366_ Critical hit (Destroy). 02366_ Imp. Treads destroyed. Map ----- +----------------------------------------------------+ | #???????????????????????????????????????????????? | | #??????????????????????????????????????????????? | | ##????????????????????????????????????????????? | | ???????? ###????????????????????????????????? | | ###????? #????????????????????????????????? | | ????? #????????????????????????????????? | | #???? #????????????????????????????????? | | #???? ##???????????????????????????????? | | ##??? #???????????????????????????????? | | #### #?????????????????????????????????? | | ???# #??????????????????????????????????? | | ???## #####???????????????????????????????? | | ???## ## #"#???????????????????????????????? | | ##?# ### #????????????????????????????????? | | # # !## #????????????????????????????????? | | *% #?????????????????????????????????? | | ###?????????????????????????????????? | | ### ! [##???????????????????????????????????? | | #??###!!%##?????????##?##??????????????????????? | | ????#&*%|#??????????? #$ #?????????????????????? | | ##%![##?###??????? &$??????????????????????? | | &&&#### ##?????## "??????### #???? ???????? | | ^ ###???#$ ###??? # ??????? | | ### ## ###### # ### ??????? | | ??# ^## # < R ??????? | | ?# ## @ # #???????????? | | ?## ## # ## ####??????????????? | | ??##?##^ ### ### #######?????????????????? | | ??????# # ###?####?# ##???????????????????????? | | ??????######?????????####????????????????????????? | | ?????????????????????????????????????????????????? | | ?????????????????????????????????????????????????? | | ?????????????????????????????????????????????????? | | ?????????????????????????????????????????????????? | | ?????????????????????????????????????????????????? | | ?????????????????????????????????????????????????? | | ?????????????????????????????????????????????????? | | ?????????????????????????????????????????????????? | | ?????????????????????????????????????????????????? | | ?????????????????????????????????????????????????? | | ?????????????????????????????????????????????????? | | ?????????????????????????????????????????????????? | | ?????????????????????????????????????????????????? | | ?????????????????????????????????????????????????? | | | | | | | | | | | | | +----------------------------------------------------+ Best States ------------- Heat Dissipation 25 Energy Generation 18 Energy Capacity 250 Matter Stores 300 Matter Capacity 300 Sight Range 16 Terrain Scan Range 16 Terrain Scan Density 10 Evasion (%) 40 Recoil Reduction 2 Offensive Hacking 10 Item Schematics ----------------- None Robot Schematics ------------------ M-13 Machinist | -10/Materials | Hacked G-34 Mercenary | -10/Materials | Hacked Fabricated ------------ Nothing Repaired ---------- Nothing Studied --------- None Alien Tech Used ----------------- None Achievements -------------- None Challenges ------------ None Game ------ Seed CarbideCombatTorch Manual? 0 Play Time 00:23:00 Cumulative 5.3 hours Start 2025.12.07 @ 00:17:01 End 2025.12.07 @ 00:37:53 Sessions 1 Manual Loads 0 Difficulty Rogue Special Mode None Game No. 5 Rogue 5 Adventurer 0 Explorer 0 Win Type - Total 0 Types 0/0/0/0/0/0/0/0/0/0 Lore% 1 Gallery% 10 Achievement% 13 Wizard Run 0 Options --------- Layout 1 ASCII 0 Keyboard 0 Movement Numpad Keybinds 0 Fullscreen 1 Font 32/SmallcapsGlow Map View 50x35 Zoom Use 0% Tactical HUD 1 Map Filters NONE Filters NONE Steam 1 RUN: 7ce1d3d1-7259-42db-892d-3011fd190c4c